[Event "Early-Titled-Tuesday-Blitz-January-16-2024"]
[Site "Chess.com"]
[Date "2024.01.16"]
[Round "5"]
[White "Danito1954"]
[Black "Kostukov_Alex"]
[Result "0-1"]
[WhiteElo "2132"]
[BlackElo "2311"]
[TimeControl "180+1"]
[EndTime "8:58:52 PST"]
[Termination "Kostukov_Alex won on time"]

1. e4 {[%clk 0:03:00.9]} 1... c5 {[%clk 0:02:59.5]} 2. Nc3 {[%clk 0:02:54.6]}
2... g6 {[%clk 0:02:59.3]} 3. d4 {[%clk 0:02:53.6]} 3... cxd4 {[%clk 0:03:00.2]}
4. Qxd4 {[%clk 0:02:54.1]} 4... Nf6 {[%clk 0:03:00.3]} 5. Bf4 {[%clk 0:02:51.3]}
5... Nc6 {[%clk 0:03:00.4]} 6. Qd3 {[%clk 0:02:50.4]} 6... Bg7 {[%clk
0:02:56.4]} 7. O-O-O {[%clk 0:02:49.9]} 7... d6 {[%clk 0:02:52.8]} 8. f3 {[%clk
0:02:42]} 8... O-O {[%clk 0:02:51.5]} 9. h4 {[%clk 0:02:41.1]} 9... Qa5 {[%clk
0:02:40.5]} 10. g4 {[%clk 0:02:39.8]} 10... Nb4 {[%clk 0:02:26.4]} 11. Qe3
{[%clk 0:02:30.9]} 11... Nxa2+ {[%clk 0:02:21.4]} 12. Nxa2 {[%clk 0:02:29.6]}
12... Qxa2 {[%clk 0:02:22.3]} 13. h5 {[%clk 0:02:27.6]} 13... Nxg4 {[%clk
0:01:55.2]} 14. fxg4 {[%clk 0:02:26.7]} 14... Qxb2+ {[%clk 0:01:52.1]} 15. Kd2
{[%clk 0:02:26.7]} 15... Bxg4 {[%clk 0:01:43.2]} 16. Be2 {[%clk 0:02:18.2]}
16... Be6 {[%clk 0:00:58.1]} 17. hxg6 {[%clk 0:02:03.5]} 17... Rac8 {[%clk
0:00:49.4]} 18. gxh7+ {[%clk 0:01:56.8]} 18... Kh8 {[%clk 0:00:49.2]} 19. Ke1
{[%clk 0:01:47.9]} 19... Rxc2 {[%clk 0:00:34.4]} 20. Bh6 {[%clk 0:01:27.4]}
20... Rfc8 {[%clk 0:00:20.5]} 21. Bxg7+ {[%clk 0:01:26.2]} 21... Qxg7 {[%clk
0:00:21.4]} 22. Nf3 {[%clk 0:01:19.3]} 22... Qg3+ {[%clk 0:00:14.6]} 23. Kf1
{[%clk 0:01:00.6]} 23... Bh3+ {[%clk 0:00:12]} 24. Rxh3 {[%clk 0:00:56.4]} 24...
Qxh3+ {[%clk 0:00:12.9]} 25. Ke1 {[%clk 0:00:55.5]} 25... Qh1+ {[%clk
0:00:07.8]} 26. Bf1 {[%clk 0:00:40.9]} 26... Qh5 {[%clk 0:00:06.2]} 27. Qd4+
{[%clk 0:00:40.1]} 27... e5 {[%clk 0:00:06.1]} 28. Qe3 {[%clk 0:00:34.6]} 28...
R2c3 {[%clk 0:00:04.3]} 29. Qg5 {[%clk 0:00:15]} 29... Qxf3 {[%clk 0:00:01.7]}
30. Be2 {[%clk 0:00:07.4]} 30... f6 {[%clk 0:00:02.2]} 31. Qg8+ {[%clk
0:00:04.3]} 31... Rxg8 {[%clk 0:00:01.9]} 32. hxg8=Q+ {[%clk 0:00:04.4]} 32...
Kxg8 {[%clk 0:00:02.8]} 33. Bxf3 {[%clk 0:00:04.4]} 33... Rxf3 {[%clk
0:00:03.7]} 34. Ke2 {[%clk 0:00:04.6]} 34... Ra3 {[%clk 0:00:03.8]} 35. Rg1+
{[%clk 0:00:04.8]} 35... Kf7 {[%clk 0:00:04.5]} 36. Rh1 {[%clk 0:00:05.3]} 36...
Ra2+ {[%clk 0:00:05]} 37. Ke3 {[%clk 0:00:04.9]} 37... Rb2 {[%clk 0:00:05.7]}
38. Rh7+ {[%clk 0:00:04.6]} 38... Ke6 {[%clk 0:00:06.4]} 39. Rxb7 {[%clk
0:00:04.8]} 39... Rxb7 {[%clk 0:00:05.5]} 40. Kd3 {[%clk 0:00:04.9]} 40... a5
{[%clk 0:00:06.1]} 41. Kc3 {[%clk 0:00:05.1]} 41... a4 {[%clk 0:00:07]} 42. Kd3
{[%clk 0:00:05.1]} 42... a3 {[%clk 0:00:07.9]} 0-1

[Event "Early-Titled-Tuesday-Blitz-January-16-2024"]
[Site "Chess.com"]
[Date "2024.01.16"]
[Round "5"]
[White "HPanesso"]
[Black "MikaelyanArman"]
[Result "1-0"]
[WhiteElo "2647"]
[BlackElo "2836"]
[TimeControl "180+1"]
[EndTime "8:58:54 PST"]
[Termination "HPanesso won by checkmate"]

1. e4 {[%clk 0:03:00.9]} 1... g6 {[%clk 0:02:55.4]} 2. d4 {[%clk 0:03:00.3]}
2... Bg7 {[%clk 0:02:55.7]} 3. Nc3 {[%clk 0:03:00.1]} 3... a6 {[%clk 0:02:55.1]}
4. h4 {[%clk 0:02:53.7]} 4... b5 {[%clk 0:02:43.8]} 5. h5 {[%clk 0:02:52]} 5...
Bb7 {[%clk 0:02:42.9]} 6. a3 {[%clk 0:02:47.8]} 6... d6 {[%clk 0:02:39.5]} 7. h6
{[%clk 0:02:44.2]} 7... Bf8 {[%clk 0:02:39.3]} 8. Nf3 {[%clk 0:02:44.2]} 8...
Nd7 {[%clk 0:02:36.5]} 9. Bf4 {[%clk 0:02:40.2]} 9... Ngf6 {[%clk 0:02:05.1]}
10. e5 {[%clk 0:02:31.4]} 10... Nd5 {[%clk 0:02:01.3]} 11. Nxd5 {[%clk
0:02:29.4]} 11... Bxd5 {[%clk 0:02:02.2]} 12. a4 {[%clk 0:02:21.6]} 12... b4
{[%clk 0:01:52.6]} 13. Be2 {[%clk 0:02:18.6]} 13... e6 {[%clk 0:01:50.7]} 14. a5
{[%clk 0:02:12.4]} 14... Be7 {[%clk 0:01:48.6]} 15. c4 {[%clk 0:02:11.4]} 15...
bxc3 {[%clk 0:01:46.6]} 16. bxc3 {[%clk 0:02:12.3]} 16... g5 {[%clk 0:01:45.6]}
17. Bg3 {[%clk 0:02:11.1]} 17... g4 {[%clk 0:01:40.8]} 18. Nh2 {[%clk
0:02:11.1]} 18... dxe5 {[%clk 0:01:39.2]} 19. dxe5 {[%clk 0:02:10.6]} 19... Bxg2
{[%clk 0:01:34.6]} 20. Rg1 {[%clk 0:02:10.5]} 20... Bd5 {[%clk 0:01:28.7]} 21.
Qa4 {[%clk 0:02:00.1]} 21... c6 {[%clk 0:01:26.4]} 22. Qxg4 {[%clk 0:01:56.4]}
22... Qb8 {[%clk 0:01:17.4]} 23. Qg7 {[%clk 0:01:48.1]} 23... Rf8 {[%clk
0:01:14.5]} 24. Qxh7 {[%clk 0:01:43.6]} 24... Qb2 {[%clk 0:01:11.7]} 25. Rb1
{[%clk 0:01:20.9]} 25... Qxc3+ {[%clk 0:01:11.4]} 26. Kf1 {[%clk 0:01:21.4]}
26... Nxe5 {[%clk 0:00:59.7]} 27. Bxe5 {[%clk 0:01:00.6]} 27... Qxe5 {[%clk
0:01:00.6]} 28. Ng4 {[%clk 0:01:01.1]} 28... Qc3 {[%clk 0:00:41]} 29. Rg3 {[%clk
0:00:56.6]} 29... Qd4 {[%clk 0:00:28.7]} 30. Qg7 {[%clk 0:00:54.7]} 30... Qe4
{[%clk 0:00:27.6]} 31. Bd3 {[%clk 0:00:48.6]} 31... Bc4 {[%clk 0:00:23]} 32. Qc3
{[%clk 0:00:24.9]} 32... Bxd3+ {[%clk 0:00:20.8]} 33. Qxd3 {[%clk 0:00:23.8]}
33... Qxd3+ {[%clk 0:00:15.4]} 34. Rxd3 {[%clk 0:00:24.7]} 34... Rd8 {[%clk
0:00:10.4]} 35. Rc3 {[%clk 0:00:25.1]} 35... f5 {[%clk 0:00:09.6]} 36. Ne3
{[%clk 0:00:24.6]} 36... Kf7 {[%clk 0:00:07.6]} 37. Rxc6 {[%clk 0:00:24.9]}
37... Rh8 {[%clk 0:00:07.9]} 38. Rbb6 {[%clk 0:00:25.4]} 38... Rxh6 {[%clk
0:00:07.5]} 39. Rxa6 {[%clk 0:00:26]} 39... f4 {[%clk 0:00:05.3]} 40. Ng4 {[%clk
0:00:25.5]} 40... Rh3 {[%clk 0:00:02.6]} 41. Kg2 {[%clk 0:00:22.8]} 41... Ra3
{[%clk 0:00:01.8]} 42. Ra7 {[%clk 0:00:22.9]} 42... f3+ {[%clk 0:00:01.9]} 43.
Kg3 {[%clk 0:00:22.8]} 43... Re8 {[%clk 0:00:02.4]} 44. Rcc7 {[%clk 0:00:22.8]}
44... Kf8 {[%clk 0:00:02.4]} 45. Rd7 {[%clk 0:00:21.9]} 45... Ra4 {[%clk
0:00:02.4]} 46. Ne5 {[%clk 0:00:20.5]} 46... Re4 {[%clk 0:00:01.5]} 47. Ng6+
{[%clk 0:00:20.6]} 47... Kf7 {[%clk 0:00:02.1]} 48. Nxe7 {[%clk 0:00:21.5]}
48... Kf6 {[%clk 0:00:02.4]} 49. Kxf3 {[%clk 0:00:21.6]} 49... Ra4 {[%clk
0:00:02.5]} 50. Nc6 {[%clk 0:00:21.9]} 50... Rc8 {[%clk 0:00:02.6]} 51. Rf7+
{[%clk 0:00:22.2]} 51... Kg6 {[%clk 0:00:03.3]} 52. Rg7+ {[%clk 0:00:22.6]}
52... Kf6 {[%clk 0:00:03.7]} 53. Raf7# {[%clk 0:00:22.5]} 1-0

[Event "Early-Titled-Tuesday-Blitz-January-16-2024"]
[Site "Chess.com"]
[Date "2024.01.16"]
[Round "5"]
[White "Lennis93"]
[Black "KVAIDAN"]
[Result "1-0"]
[WhiteElo "2782"]
[BlackElo "2414"]
[TimeControl "180+1"]
[EndTime "8:58:55 PST"]
[Termination "Lennis93 won by checkmate"]

1. b3 {[%clk 0:02:48.7]} 1... f5 {[%clk 0:02:58.1]} 2. Bb2 {[%clk 0:02:49.3]}
2... Nf6 {[%clk 0:02:58.4]} 3. g3 {[%clk 0:02:49.2]} 3... d6 {[%clk 0:02:58.3]}
4. d4 {[%clk 0:02:47.8]} 4... e6 {[%clk 0:02:57.8]} 5. Bg2 {[%clk 0:02:47.8]}
5... Be7 {[%clk 0:02:58.4]} 6. Nd2 {[%clk 0:02:48.1]} 6... O-O {[%clk
0:02:58.8]} 7. e4 {[%clk 0:02:48.4]} 7... fxe4 {[%clk 0:02:49.2]} 8. Nxe4 {[%clk
0:02:49.3]} 8... Nxe4 {[%clk 0:02:48.6]} 9. Bxe4 {[%clk 0:02:50.2]} 9... Nd7
{[%clk 0:02:48.7]} 10. Qd3 {[%clk 0:02:41.5]} 10... Nf6 {[%clk 0:02:48.1]} 11.
Bg2 {[%clk 0:02:41.6]} 11... a5 {[%clk 0:02:46.6]} 12. Nf3 {[%clk 0:02:39.2]}
12... a4 {[%clk 0:02:39.3]} 13. O-O {[%clk 0:02:39.1]} 13... Qe8 {[%clk
0:02:36.8]} 14. Rae1 {[%clk 0:02:38.4]} 14... Qh5 {[%clk 0:02:36]} 15. c4 {[%clk
0:02:33.7]} 15... Bd7 {[%clk 0:02:29.6]} 16. b4 {[%clk 0:02:30.7]} 16... a3
{[%clk 0:02:18.6]} 17. Bc3 {[%clk 0:02:30.1]} 17... Ng4 {[%clk 0:02:11.5]} 18.
h3 {[%clk 0:02:29.2]} 18... Nh6 {[%clk 0:02:11.3]} 19. g4 {[%clk 0:02:19.2]}
19... Qf7 {[%clk 0:02:10.9]} 20. Bd2 {[%clk 0:02:12.9]} 20... Ra4 {[%clk
0:01:58.1]} 21. d5 {[%clk 0:02:06.3]} 21... e5 {[%clk 0:01:53.5]} 22. Qb3 {[%clk
0:01:39.7]} 22... Qg6 {[%clk 0:01:44.4]} 23. b5 {[%clk 0:01:21.2]} 23... Raa8
{[%clk 0:01:39.4]} 24. Bb4 {[%clk 0:01:16]} 24... Rf4 {[%clk 0:01:27.1]} 25.
Nxe5 {[%clk 0:01:11.1]} 25... dxe5 {[%clk 0:01:16.7]} 26. Bxe7 {[%clk 0:01:12]}
26... Nf7 {[%clk 0:01:04]} 27. c5 {[%clk 0:01:09.8]} 27... Re8 {[%clk
0:00:58.2]} 28. d6 {[%clk 0:01:07.3]} 28... cxd6 {[%clk 0:00:58.1]} 29. cxd6
{[%clk 0:01:06.1]} 29... h5 {[%clk 0:00:57.6]} 30. Rxe5 {[%clk 0:00:57.8]} 30...
hxg4 {[%clk 0:00:55.3]} 31. Rg5 {[%clk 0:00:57.8]} 31... Qe6 {[%clk 0:00:48.8]}
32. Bd5 {[%clk 0:00:56.3]} 32... Qh6 {[%clk 0:00:39.5]} 33. Qg3 {[%clk
0:00:45.4]} 33... Rd4 {[%clk 0:00:26.8]} 34. Qe5 {[%clk 0:00:24.6]} 34... Rxd5
{[%clk 0:00:17.2]} 35. Qxd5 {[%clk 0:00:19.5]} 35... Qxh3 {[%clk 0:00:17.2]} 36.
Bf6 {[%clk 0:00:11.3]} 36... Be6 {[%clk 0:00:10]} 37. Rxg7+ {[%clk 0:00:11.5]}
37... Kf8 {[%clk 0:00:10.2]} 38. Qd4 {[%clk 0:00:08.1]} 38... Qh6 {[%clk
0:00:09.2]} 39. Be7+ {[%clk 0:00:08.1]} 39... Rxe7 {[%clk 0:00:09.6]} 40. dxe7+
{[%clk 0:00:08.6]} 40... Kxe7 {[%clk 0:00:10.1]} 41. Re1 {[%clk 0:00:06.8]}
41... g3 {[%clk 0:00:07.8]} 42. Rxg3 {[%clk 0:00:06.7]} 42... Qh5 {[%clk
0:00:06.7]} 43. Qb4+ {[%clk 0:00:06.5]} 43... Ke8 {[%clk 0:00:06.5]} 44. Rxe6+
{[%clk 0:00:06.1]} 44... Kd7 {[%clk 0:00:05.8]} 45. Qe7+ {[%clk 0:00:06.2]}
45... Kc8 {[%clk 0:00:05.8]} 46. Rg8+ {[%clk 0:00:06.3]} 46... Nd8 {[%clk
0:00:05.2]} 47. Rxd8# {[%clk 0:00:06]} 1-0

[Event "Early-Titled-Tuesday-Blitz-January-16-2024"]
[Site "Chess.com"]
[Date "2024.01.16"]
[Round "5"]
[White "Tejas_Rama"]
[Black "Hamisandwich"]
[Result "1-0"]
[WhiteElo "2581"]
[BlackElo "2704"]
[TimeControl "180+1"]
[EndTime "8:58:55 PST"]
[Termination "Tejas_Rama won on time"]

1. d4 {[%clk 0:03:00.9]} 1... d6 {[%clk 0:02:59.3]} 2. Nf3 {[%clk 0:03:00.8]}
2... Nf6 {[%clk 0:02:58.3]} 3. c4 {[%clk 0:03:00.4]} 3... g6 {[%clk 0:02:58.7]}
4. Nc3 {[%clk 0:03:00.2]} 4... Bf5 {[%clk 0:02:59]} 5. d5 {[%clk 0:02:47.9]}
5... Bg7 {[%clk 0:02:57.4]} 6. Nd4 {[%clk 0:02:43.1]} 6... Bd7 {[%clk 0:02:55]}
7. e4 {[%clk 0:02:42.3]} 7... O-O {[%clk 0:02:47.4]} 8. Be2 {[%clk 0:02:39.9]}
8... Na6 {[%clk 0:02:40.4]} 9. Be3 {[%clk 0:02:31.4]} 9... Nc5 {[%clk
0:02:38.9]} 10. Qc2 {[%clk 0:02:28.3]} 10... e5 {[%clk 0:02:35.9]} 11. dxe6
{[%clk 0:02:13.5]} 11... fxe6 {[%clk 0:02:19.4]} 12. e5 {[%clk 0:01:48.7]} 12...
Ne8 {[%clk 0:02:15]} 13. Nf3 {[%clk 0:01:16.5]} 13... Qe7 {[%clk 0:02:00.8]} 14.
Bxc5 {[%clk 0:01:03.1]} 14... dxc5 {[%clk 0:02:00.2]} 15. O-O-O {[%clk
0:00:56.9]} 15... Bc6 {[%clk 0:01:57.8]} 16. h4 {[%clk 0:00:50]} 16... Bh6+
{[%clk 0:01:53.2]} 17. Kb1 {[%clk 0:00:49.5]} 17... Ng7 {[%clk 0:01:53.8]} 18.
Ne4 {[%clk 0:00:43.8]} 18... Bxe4 {[%clk 0:01:33.4]} 19. Qxe4 {[%clk 0:00:44.7]}
19... Rab8 {[%clk 0:01:32.3]} 20. Qc2 {[%clk 0:00:33]} 20... Nh5 {[%clk
0:01:16.6]} 21. g3 {[%clk 0:00:19.4]} 21... a6 {[%clk 0:00:54.9]} 22. Qe4 {[%clk
0:00:19]} 22... Qf7 {[%clk 0:00:42.1]} 23. Rd3 {[%clk 0:00:06.8]} 23... b5
{[%clk 0:00:35.3]} 24. Rhd1 {[%clk 0:00:05.3]} 24... Ng7 {[%clk 0:00:17.2]} 25.
Rd7 {[%clk 0:00:05.2]} 25... Qf5 {[%clk 0:00:16.3]} 26. Qxf5 {[%clk 0:00:05.5]}
26... Nxf5 {[%clk 0:00:16.2]} 27. Rxc7 {[%clk 0:00:05.5]} 27... Nd4 {[%clk
0:00:11.1]} 28. Nxd4 {[%clk 0:00:04.9]} 28... cxd4 {[%clk 0:00:10.7]} 29. f4
{[%clk 0:00:05.2]} 29... Rfd8 {[%clk 0:00:08.8]} 30. c5 {[%clk 0:00:04.5]} 30...
Bf8 {[%clk 0:00:07.9]} 31. b4 {[%clk 0:00:04]} 31... a5 {[%clk 0:00:08.4]} 32.
a3 {[%clk 0:00:03.4]} 32... axb4 {[%clk 0:00:07.5]} 33. axb4 {[%clk 0:00:04.3]}
33... Ra8 {[%clk 0:00:08.1]} 34. Rd3 {[%clk 0:00:03.7]} 34... Ra4 {[%clk
0:00:07.3]} 35. Rb3 {[%clk 0:00:04]} 35... Rda8 {[%clk 0:00:07.9]} 36. Bxb5
{[%clk 0:00:03.8]} 36... Ra1+ {[%clk 0:00:06.7]} 37. Kc2 {[%clk 0:00:04.5]}
37... R8a2+ {[%clk 0:00:06.8]} 38. Rb2 {[%clk 0:00:05.1]} 38... Ra3 {[%clk
0:00:06.6]} 39. Rc8 {[%clk 0:00:04.5]} 39... Rc3+ {[%clk 0:00:06.7]} 40. Kd2
{[%clk 0:00:04.6]} 40... Rg1 {[%clk 0:00:05]} 41. Be2 {[%clk 0:00:04.6]} 41...
Rg2 {[%clk 0:00:04.6]} 42. Ra2 {[%clk 0:00:03.8]} 1-0

[Event "Early-Titled-Tuesday-Blitz-January-16-2024"]
[Site "Chess.com"]
[Date "2024.01.16"]
[Round "5"]
[White "blitzking1729"]
[Black "oganromchess"]
[Result "1-0"]
[WhiteElo "2684"]
[BlackElo "2539"]
[TimeControl "180+1"]
[EndTime "8:58:55 PST"]
[Termination "blitzking1729 won on time"]

1. Nf3 {[%clk 0:02:54.6]} 1... e6 {[%clk 0:02:58.4]} 2. g3 {[%clk 0:02:55.5]}
2... f5 {[%clk 0:02:58]} 3. Bg2 {[%clk 0:02:54.3]} 3... Nf6 {[%clk 0:02:57.6]}
4. O-O {[%clk 0:02:55.1]} 4... Be7 {[%clk 0:02:57.4]} 5. d3 {[%clk 0:02:55.2]}
5... O-O {[%clk 0:02:53]} 6. Nc3 {[%clk 0:02:54.9]} 6... d6 {[%clk 0:02:51.2]}
7. e4 {[%clk 0:02:54.7]} 7... fxe4 {[%clk 0:02:44.1]} 8. Nxe4 {[%clk 0:02:46.4]}
8... Nxe4 {[%clk 0:02:43.6]} 9. dxe4 {[%clk 0:02:46.5]} 9... e5 {[%clk
0:02:42.3]} 10. Nd2 {[%clk 0:02:40.8]} 10... Be6 {[%clk 0:02:23.6]} 11. Qe2
{[%clk 0:02:34.3]} 11... Nc6 {[%clk 0:02:11]} 12. c3 {[%clk 0:02:34.3]} 12...
Qd7 {[%clk 0:01:58]} 13. Nc4 {[%clk 0:02:32.7]} 13... b5 {[%clk 0:01:30.1]} 14.
Ne3 {[%clk 0:02:26.8]} 14... b4 {[%clk 0:01:29.7]} 15. Nd5 {[%clk 0:02:22.9]}
15... bxc3 {[%clk 0:01:27.5]} 16. bxc3 {[%clk 0:02:22.2]} 16... Bd8 {[%clk
0:01:21.8]} 17. f4 {[%clk 0:02:21.7]} 17... exf4 {[%clk 0:00:59]} 18. Bxf4
{[%clk 0:02:12.1]} 18... Ne5 {[%clk 0:00:51.7]} 19. Bxe5 {[%clk 0:01:21.3]}
19... Rxf1+ {[%clk 0:00:44.8]} 20. Rxf1 {[%clk 0:01:13.4]} 20... dxe5 {[%clk
0:00:45.7]} 21. Qf2 {[%clk 0:01:13.7]} 21... Be7 {[%clk 0:00:31.6]} 22. Bh3
{[%clk 0:01:06.2]} 22... Bxh3 {[%clk 0:00:20.5]} 23. Qf7+ {[%clk 0:01:05.2]}
23... Kh8 {[%clk 0:00:20.1]} 24. Nxe7 {[%clk 0:00:58.2]} 24... Qe8 {[%clk
0:00:13]} 25. Qxe8+ {[%clk 0:00:46.6]} 25... Rxe8 {[%clk 0:00:13.9]} 26. Rb1
{[%clk 0:00:25.5]} 26... h6 {[%clk 0:00:11.5]} 27. Nc6 {[%clk 0:00:24]} 27... a6
{[%clk 0:00:07.7]} 28. Kf2 {[%clk 0:00:22.9]} 28... Re6 {[%clk 0:00:05.9]} 29.
Rb8+ {[%clk 0:00:20]} 29... Kh7 {[%clk 0:00:05.7]} 30. Nb4 {[%clk 0:00:20.5]}
30... a5 {[%clk 0:00:03.8]} 31. Nd5 {[%clk 0:00:18.2]} 31... Rc6 {[%clk
0:00:03.7]} 32. Ke3 {[%clk 0:00:17.2]} 32... Be6 {[%clk 0:00:03.6]} 33. Rb3
{[%clk 0:00:06.4]} 33... Rc5 {[%clk 0:00:02.7]} 34. Ra3 {[%clk 0:00:03.6]} 34...
Rxd5 {[%clk 0:00:02.5]} 35. exd5 {[%clk 0:00:03.8]} 1-0

[Event "Early-Titled-Tuesday-Blitz-January-16-2024"]
[Site "Chess.com"]
[Date "2024.01.16"]
[Round "5"]
[White "kai_nov"]
[Black "ChainedDowntohell"]
[Result "0-1"]
[WhiteElo "2329"]
[BlackElo "2552"]
[TimeControl "180+1"]
[EndTime "8:58:55 PST"]
[Termination "ChainedDowntohell won by checkmate"]

1. d4 {[%clk 0:02:49.1]} 1... Nf6 {[%clk 0:02:56.3]} 2. Nc3 {[%clk 0:02:47.5]}
2... e6 {[%clk 0:02:50.8]} 3. e4 {[%clk 0:02:47]} 3... d5 {[%clk 0:02:50.2]} 4.
Bg5 {[%clk 0:02:46.7]} 4... dxe4 {[%clk 0:02:45.2]} 5. Nxe4 {[%clk 0:02:46.5]}
5... Be7 {[%clk 0:02:45.3]} 6. Bxf6 {[%clk 0:02:45.5]} 6... gxf6 {[%clk
0:02:44.9]} 7. Nf3 {[%clk 0:02:44.9]} 7... f5 {[%clk 0:02:42.3]} 8. Ng3 {[%clk
0:02:43.4]} 8... b6 {[%clk 0:02:32.5]} 9. c3 {[%clk 0:02:42.3]} 9... Bb7 {[%clk
0:02:31.9]} 10. Bb5+ {[%clk 0:02:38.6]} 10... Kf8 {[%clk 0:02:25.7]} 11. Qe2
{[%clk 0:02:36.2]} 11... Nd7 {[%clk 0:02:20.3]} 12. Bxd7 {[%clk 0:02:29.3]}
12... Qxd7 {[%clk 0:02:18.2]} 13. Ne5 {[%clk 0:02:29.4]} 13... Qe8 {[%clk
0:02:04.9]} 14. Qh5 {[%clk 0:02:22.9]} 14... Bf6 {[%clk 0:02:00.4]} 15. O-O-O
{[%clk 0:02:10.8]} 15... h6 {[%clk 0:01:35.8]} 16. Rhe1 {[%clk 0:02:05.3]} 16...
Rd8 {[%clk 0:01:22.6]} 17. Nxf5 {[%clk 0:01:52.2]} 17... exf5 {[%clk 0:01:05.2]}
18. Ng6+ {[%clk 0:01:48.7]} 18... fxg6 {[%clk 0:01:05.2]} 19. Rxe8+ {[%clk
0:01:47.3]} 19... Rxe8 {[%clk 0:01:05.8]} 20. Qxg6 {[%clk 0:01:45.2]} 20... Bg5+
{[%clk 0:00:51.1]} 21. Kb1 {[%clk 0:01:34.7]} 21... Be4+ {[%clk 0:00:49.4]} 22.
Ka1 {[%clk 0:01:33.4]} 22... f4 {[%clk 0:00:40]} 23. Qh5 {[%clk 0:01:15.1]}
23... Bc2 {[%clk 0:00:31.1]} 24. Rc1 {[%clk 0:01:02.3]} 24... f3 {[%clk
0:00:31.3]} 25. Qxf3+ {[%clk 0:01:01.5]} 25... Kg7 {[%clk 0:00:31.5]} 26. Rf1
{[%clk 0:00:50.9]} 26... Re7 {[%clk 0:00:29.5]} 27. a3 {[%clk 0:00:42.5]} 27...
Rhe8 {[%clk 0:00:26]} 28. Ka2 {[%clk 0:00:34.7]} 28... a5 {[%clk 0:00:22.1]} 29.
a4 {[%clk 0:00:18.4]} 29... Bxa4 {[%clk 0:00:18.6]} 30. h4 {[%clk 0:00:16.3]}
30... Bf6 {[%clk 0:00:15.9]} 31. Qg4+ {[%clk 0:00:15.9]} 31... Kh8 {[%clk
0:00:14.8]} 32. Qg6 {[%clk 0:00:15.1]} 32... Bg7 {[%clk 0:00:13.9]} 33. f4
{[%clk 0:00:13]} 33... Bb5 {[%clk 0:00:13]} 34. Rf3 {[%clk 0:00:10.8]} 34...
Bc4+ {[%clk 0:00:11.9]} 35. b3 {[%clk 0:00:10.6]} 35... Bf7 {[%clk 0:00:08.7]}
36. Qd3 {[%clk 0:00:07.6]} 36... a4 {[%clk 0:00:08.1]} 37. c4 {[%clk 0:00:06]}
37... b5 {[%clk 0:00:07.2]} 38. d5 {[%clk 0:00:05.5]} 38... c6 {[%clk
0:00:06.4]} 39. bxa4 {[%clk 0:00:03.8]} 39... bxc4 {[%clk 0:00:06.1]} 40. Qd4
{[%clk 0:00:02.9]} 40... Bxd4 {[%clk 0:00:05.5]} 41. Rg3 {[%clk 0:00:02.7]}
41... Bxd5 {[%clk 0:00:05.2]} 42. Rg4 {[%clk 0:00:02.6]} 42... Re2+ {[%clk
0:00:06.1]} 43. Ka3 {[%clk 0:00:02.7]} 43... Bc5# {[%clk 0:00:06.6]} 0-1

[Event "Early-Titled-Tuesday-Blitz-January-16-2024"]
[Site "Chess.com"]
[Date "2024.01.16"]
[Round "5"]
[White "1mbl4"]
[Black "starworld123"]
[Result "0-1"]
[WhiteElo "2584"]
[BlackElo "2836"]
[TimeControl "180+1"]
[EndTime "8:59:00 PST"]
[Termination "starworld123 won on time"]

1. e4 {[%clk 0:03:00.8]} 1... c5 {[%clk 0:02:54.5]} 2. d4 {[%clk 0:02:52.4]}
2... cxd4 {[%clk 0:02:53.3]} 3. c3 {[%clk 0:02:51.5]} 3... d3 {[%clk 0:02:49.3]}
4. c4 {[%clk 0:02:48.4]} 4... Nc6 {[%clk 0:02:48.8]} 5. Bxd3 {[%clk 0:02:47.5]}
5... g6 {[%clk 0:02:49.5]} 6. Nc3 {[%clk 0:02:45]} 6... Bg7 {[%clk 0:02:49.7]}
7. Nge2 {[%clk 0:02:40.3]} 7... Nf6 {[%clk 0:02:46.4]} 8. O-O {[%clk 0:02:37.7]}
8... O-O {[%clk 0:02:46.1]} 9. h3 {[%clk 0:02:37.7]} 9... d6 {[%clk 0:02:43.9]}
10. Be3 {[%clk 0:02:36.8]} 10... Nd7 {[%clk 0:02:42.1]} 11. f4 {[%clk
0:02:33.8]} 11... Nc5 {[%clk 0:02:35.2]} 12. Rc1 {[%clk 0:02:31.9]} 12... Nxd3
{[%clk 0:02:17.3]} 13. Qxd3 {[%clk 0:02:32.8]} 13... f5 {[%clk 0:02:17.5]} 14.
b3 {[%clk 0:02:15.9]} 14... Qa5 {[%clk 0:01:46.2]} 15. Qd5+ {[%clk 0:02:11.3]}
15... Rf7 {[%clk 0:01:29.8]} 16. Qxa5 {[%clk 0:02:03]} 16... Nxa5 {[%clk
0:01:30.7]} 17. Bd4 {[%clk 0:01:57]} 17... Bh6 {[%clk 0:01:22.6]} 18. e5 {[%clk
0:01:47.3]} 18... dxe5 {[%clk 0:01:15.7]} 19. Bxe5 {[%clk 0:01:48.2]} 19... Nc6
{[%clk 0:01:16.3]} 20. Rcd1 {[%clk 0:01:45.1]} 20... Nxe5 {[%clk 0:01:16.6]} 21.
fxe5 {[%clk 0:01:44.2]} 21... Be6 {[%clk 0:00:56.9]} 22. Nd4 {[%clk 0:01:33.1]}
22... Be3+ {[%clk 0:00:56.8]} 23. Kh2 {[%clk 0:01:28.7]} 23... Bxd4 {[%clk
0:00:57.7]} 24. Rxd4 {[%clk 0:01:28.6]} 24... Rff8 {[%clk 0:00:58.3]} 25. Rfd1
{[%clk 0:01:27.5]} 25... Kf7 {[%clk 0:00:56.6]} 26. Ne2 {[%clk 0:01:21.5]} 26...
Rac8 {[%clk 0:00:52.2]} 27. Nf4 {[%clk 0:01:15.1]} 27... Rc7 {[%clk 0:00:47.9]}
28. h4 {[%clk 0:00:44.5]} 28... Rfc8 {[%clk 0:00:45.6]} 29. Rd8 {[%clk
0:00:43.7]} 29... h6 {[%clk 0:00:43.5]} 30. h5 {[%clk 0:00:41.4]} 30... g5
{[%clk 0:00:37]} 31. Ng6 {[%clk 0:00:38.9]} 31... f4 {[%clk 0:00:37.5]} 32. Nh8+
{[%clk 0:00:32]} 32... Kg7 {[%clk 0:00:36.7]} 33. Ng6 {[%clk 0:00:26.3]} 33...
Bg4 {[%clk 0:00:26.6]} 34. R1d2 {[%clk 0:00:07.7]} 34... Rxd8 {[%clk 0:00:25.4]}
35. Rxd8 {[%clk 0:00:08.6]} 35... Bxh5 {[%clk 0:00:25.7]} 36. Nf8 {[%clk
0:00:07.7]} 36... Bg4 {[%clk 0:00:26.1]} 37. e6 {[%clk 0:00:07]} 37... Kf6
{[%clk 0:00:11.4]} 38. Rd7 {[%clk 0:00:05.6]} 38... Rc8 {[%clk 0:00:09.9]} 39.
Nh7+ {[%clk 0:00:06.1]} 39... Kxe6 {[%clk 0:00:10.6]} 40. Rxb7 {[%clk
0:00:02.6]} 40... Bf5 {[%clk 0:00:11.4]} 0-1